[Event "European Amateur-ch U1700 2019"]
[Site "Rhodes"]
[Date "2019.04.09"]
[Round "4.9"]
[White "De Luca, Andrew"]
[Black "Diamantis, Georgios D."]
[Result "1-0"]
[ECO "D01"]
[WhiteElo "1483"]
[BlackElo "1632"]
[Annotator "NA"]
[PlyCount "129"]
[EventDate "2019.04.06"]
[EventType "swiss"]
[EventCountry "GRE"]
[SourceTitle "playchess.com"]
[Source "ChessBase"]
[SourceQuality "1"]
[TimeControl "40/5400+30:1800+30"]

1. d4 {[%emt 0:00:00]} d5 {[%emt 0:00:00]} 2. Nc3 {[%emt 0:00:00]} Nf6 {[%emt 0:00:07]} 3. Bg5 {[%emt 0:01:26]} e6 {[%emt 0:01:27]} 4. f3 {[%emt 0:03:05]} Be7 {[%emt 0:02:40]} 5. e4 {[%emt 0:02:00]} Nfd7 {[%emt 0:03:31]} 6. Bxe7 {[%emt 0:00:47]} Qxe7 {[%emt 0:00:30]} 7. Bd3 {[%emt 0:01:07]} c5 {[%emt 0:02:24]} 8. Nb5 {[%emt 0:01:47]} Na6 {[%emt 0:01:31]} 9. c3 {[%emt 0:00:51]} c4 {[%emt 0:00:58]} 10. Bc2 {[%emt 0:01:07]} Nb6 {[%emt 0:00:43]} 11. a4 {[%emt 0:02:33]} O-O {[%emt 0:00:31]} 12. Ne2 {[%emt 0:03:44]} Bd7 {[%emt 0:01:15]} 13. O-O {[%emt 0:01:24]} Bxb5 {[%emt 0:01:21]} 14. axb5 {[%emt 0:00:20]} Nc7 {[%emt 0:00:10]} 15. e5 {[%emt 0:00:38]} Nxb5 {[%emt 0:01:54]} 16. f4 {[%emt 0:00:32]} f5 {[%emt 0:00:38]} 17. exf6 {[%emt 0:01:05]} Rxf6 {[%emt 0:00:42]} 18. Ng3 {[%emt 0:00:43]} Nd6 {[%emt 0:01:34]} 19. Nh5 {[%emt 0:02:42]} Rf7 {[%emt 0:00:36]} 20. g4 {[%emt 0:03:00]} a6 {[%emt 0:01:01]} 21. g5 {[%emt 0:00:10]} Nf5 {[%emt 0:02:43]} 22. Qf3 {[%emt 0:01:07]} Nd7 {[%emt 0:00:40]} 23. Rae1 {[%emt 0:00:35]} g6 {[%emt 0:00:38]} 24. Ng3 {[%emt 0:00:25]} Nxg3 {[%emt 0:01:09]} 25. Qxg3 {[%emt 0:00:29]} b5 {[%emt 0:00:36]} 26. h4 {[%emt 0:00:11]} Kg7 {[%emt 0:01:45]} 27. Qh3 {[%emt 0:00:21]} Nf8 {[%emt 0:01:06]} 28. h5 {[%emt 0:00:31]} Qd6 {[%emt 0:01:29]} 29. hxg6 {[%emt 0:00:45]} Nxg6 {[%emt 0:00:30]} 30. Qh6+ {[%emt 0:01:06]} Kg8 {[%emt 0:02:25]} 31. Bxg6 {[%emt 0:00:37]} hxg6 {[%emt 0:00:50]} 32. Qxg6+ {[%emt 0:00:15]} Rg7 {[%emt 0:01:51]} 33. Qxe6+ {[%emt 0:00:30]} Qxe6 {[%emt 0:00:25]} 34. Rxe6 {[%emt 0:00:07]} a5 {[%emt 0:01:21]} 35. Rd6 {[%emt 0:01:13]} b4 {[%emt 0:00:24]} 36. Rxd5 {[%emt 0:00:08]} bxc3 {[%emt 0:00:03]} 37. bxc3 {[%emt 0:00:14]} Rc7 {[%emt 0:00:41]} 38. f5 {[%emt 0:00:27]} a4 {[%emt 0:00:18]} 39. Rb5 {[%emt 0:02:08]} a3 {[%emt 0:00:15]} 40. Rbb1 {[%emt 0:00:26]} a2 {[%emt 0:00:02]} 41. Ra1 {[%emt 0:30:11]} Rb7 {[%emt 0:30:44]} 42. Kg2 {[%emt 0:01:01]} Kf7 {[%emt 0:00:46]} 43. Rf2 {[%emt 0:00:28]} Rba7 {[%emt 0:00:42]} 44. Rd2 {[%emt 0:00:00]} Ke7 {[%emt 0:00:00]} 45. Kf3 {[%emt 0:00:00]} Kd6 {[%emt 0:00:00]} 46. g6 {[%emt 0:00:00]} Ra3 {[%emt 0:00:00]} 47. Rc2 {[%emt 0:00:00]} Kd5 {[%emt 0:00:00]} 48. Kf4 {[%emt 0:00:00]} R3a6 {[%emt 0:00:00]} 49. g7 {[%emt 0:00:00]} R6a7 {[%emt 0:00:00]} 50. Rg2 {[%emt 0:00:00]} Rg8 {[%emt 0:00:00]} 51. Rgxa2 {[%emt 0:00:00]} Raxg7 {[%emt 0:00:37]} 52. Ra5+ {[%emt 0:00:21]} Kc6 {[%emt 0:00:00]} 53. Ra6+ {[%emt 0:00:00]} Kb7 {[%emt 0:00:00]} 54. Ra7+ {[%emt 0:00:00]} Kb6 {[%emt 0:00:00]} 55. Rxg7 {[%emt 0:00:00]} Rxg7 {[%emt 0:00:11]} 56. f6 {[%emt 0:00:18]} Rg2 {[%emt 0:00:00]} 57. Ke5 {[%emt 0:00:00]} Re2+ {[%emt 0:00:00]} 58. Kd6 {[%emt 0:00:00]} Rf2 {[%emt 0:00:00]} 59. Rb1+ {[%emt 0:00:00]} Ka5 {[%emt 0:00:00]} 60. Kc5 {[%emt 0:00:00]} Rf5+ {[%emt 0:00:00]} 61. Kxc4 {[%emt 0:00:00]} Rxf6 {[%emt 0:00:17]} 62. Kc5 {[%emt 0:00:13]} Rf5+ {[%emt 0:00:00]} 63. d5 {[%emt 0:00:00]} Ka6 {[%emt 0:00:00]} 64. Kc6 {[%emt 0:00:00]} Ka5 {[%emt 0:00:00]} 65. Ra1# {[%emt 0:00:00]} 1-0

[Event "European Amateur-ch U1700 2019"]
[Site "Rhodes"]
[Date "2019.04.10"]
[Round "5.1"]
[White "Stathatos, Alexandros"]
[Black "Pereverzev, Timofei"]
[Result "1-0"]
[ECO "B42"]
[WhiteElo "1184"]
[BlackElo "1463"]
[Annotator "NA"]
[PlyCount "85"]
[EventDate "2019.04.06"]
[EventType "swiss"]
[EventCountry "GRE"]
[SourceTitle "playchess.com"]
[Source "ChessBase"]
[SourceQuality "1"]
[TimeControl "40/5400+30:1800+30"]

1. e4 {[%emt 0:00:00]} c5 {[%emt 0:00:00]} 2. Nf3 {[%emt 0:00:00]} e6 {[%emt 0:00:33]} 3. d4 {[%emt 0:00:00]} cxd4 {[%emt 0:01:23]} 4. Nxd4 {[%emt 0:00:18]} a6 {[%emt 0:00:46]} 5. Bd3 {[%emt 0:01:09]} Qc7 {[%emt 0:01:04]} 6. O-O {[%emt 0:01:46]} Nf6 {[%emt 0:03:14]} 7. c4 {[%emt 0:11:10]} Nc6 {[%emt 0:02:29]} 8. Nxc6 {[%emt 0:01:08]} dxc6 {[%emt 0:00:27]} 9. Nc3 {[%emt 0:00:33]} e5 {[%emt 0:00:22]} 10. h3 {[%emt 0:01:27]} Bc5 {[%emt 0:01:03]} 11. Bg5 {[%emt 0:02:09]} Be6 {[%emt 0:00:39]} 12. a3 {[%emt 0:03:21]} Rd8 {[%emt 0:01:51]} 13. Qf3 {[%emt 0:01:35]} Be7 {[%emt 0:02:02]} 14. Rfd1 {[%emt 0:02:45]} h6 {[%emt 0:00:10]} 15. Bxf6 {[%emt 0:02:51]} Bxf6 {[%emt 0:00:23]} 16. Ne2 {[%emt 0:00:22]} O-O {[%emt 0:01:39]} 17. Ng3 {[%emt 0:00:15]} Bg5 {[%emt 0:01:55]} 18. Nf5 {[%emt 0:01:30]} g6 {[%emt 0:00:25]} 19. h4 {[%emt 0:02:42]} Bxf5 {[%emt 0:06:49]} 20. hxg5 {[%emt 0:00:43]} Bxe4 {[%emt 0:00:27]} 21. Bxe4 {[%emt 0:01:22]} Rxd1+ {[%emt 0:00:05]} 22. Rxd1 {[%emt 0:00:07]} hxg5 {[%emt 0:00:02]} 23. Qf6 {[%emt 0:00:47]} g4 {[%emt 0:01:48]} 24. Qg5 {[%emt 0:00:52]} Kg7 {[%emt 0:01:01]} 25. c5 {[%emt 0:03:12]} f5 {[%emt 0:03:42]} 26. Rd6 {[%emt 0:02:20]} Qf7 {[%emt 0:01:39]} 27. Bc2 {[%emt 0:05:05]} e4 {[%emt 0:03:20]} 28. Qd2 {[%emt 0:02:19]} Re8 {[%emt 0:09:09]} 29. Qc3+ {[%emt 0:03:46]} Kh6 {[%emt 0:03:50]} 30. Bb3 {[%emt 0:01:56]} Qh7 {[%emt 0:08:31]} 31. Qd2+ {[%emt 0:00:55]} Kh5 {[%emt 0:00:16]} 32. Qf4 {[%emt 0:00:29]} Qg7 {[%emt 0:00:20]} 33. Qd2 {[%emt 0:07:41]} Re7 {[%emt 0:06:26]} 34. g3 {[%emt 0:03:17]} Qe5 {[%emt 0:02:13]} 35. f4 {[%emt 0:01:04]} Qxc5+ {[%emt 0:00:23]} 36. Kh1 {[%emt 0:00:55]} Kh6 {[%emt 0:02:19]} 37. Rd8 {[%emt 0:01:42]} Kg7 {[%emt 0:02:01]} 38. Qh2 {[%emt 0:03:00]} Qc1+ {[%emt 0:00:27]} 39. Bd1 {[%emt 0:00:06]} Kf6 {[%emt 0:20:16]} 40. Qh8+ {[%emt 0:00:00]} Ke6 {[%emt 0:00:00]} 41. Qg8+ {[%emt 0:00:42]} Rf7 {[%emt 0:01:19]} 42. Qxg6+ {[%emt 0:00:14]} Rf6 {[%emt 0:01:49]} 43. Qe8# {[%emt 0:00:05]} 1-0

[Event "European Amateur-ch U1700 2019"]
[Site "Rhodes"]
[Date "2019.04.10"]
[Round "5.2"]
[White "Ruzic, Milos"]
[Black "Kanev, Evgeny"]
[Result "1-0"]
[ECO "B07"]
[WhiteElo "1674"]
[BlackElo "1629"]
[Annotator "NA"]
[PlyCount "125"]
[EventDate "2019.04.06"]
[EventType "swiss"]
[EventCountry "GRE"]
[SourceTitle "playchess.com"]
[Source "ChessBase"]
[SourceQuality "1"]
[TimeControl "40/5400+30:1800+30"]

1. e4 {[%emt 0:00:00]} d6 {[%emt 0:00:00]} 2. Bc4 {[%emt 0:00:00]} Nf6 {[%emt 0:00:00]} 3. d3 {[%emt 0:00:01]} g6 {[%emt 0:00:00]} 4. Nf3 {[%emt 0:04:32]} Bg7 {[%emt 0:00:00]} 5. Nc3 {[%emt 0:00:33]} c6 {[%emt 0:01:01]} 6. Bb3 {[%emt 0:00:27]} b5 {[%emt 0:00:52]} 7. e5 {[%emt 0:01:29]} dxe5 {[%emt 0:09:45]} 8. Nxe5 {[%emt 0:00:26]} O-O {[%emt 0:08:30]} 9. O-O {[%emt 0:19:57]} b4 {[%emt 0:13:53]} 10. Na4 {[%emt 0:05:14]} Nd5 {[%emt 0:01:05]} 11. d4 {[%emt 0:02:34]} Qc7 {[%emt 0:06:49]} 12. Re1 {[%emt 0:02:16]} e6 {[%emt 0:08:01]} 13. c4 {[%emt 0:04:33]} bxc3 {[%emt 0:02:37]} 14. bxc3 {[%emt 0:02:05]} Nd7 {[%emt 0:01:07]} 15. Nxd7 {[%emt 0:04:43]} Bxd7 {[%emt 0:00:45]} 16. Ba3 {[%emt 0:02:17]} Rfe8 {[%emt 0:07:17]} 17. c4 {[%emt 0:05:16]} Nf6 {[%emt 0:12:17]} 18. Rc1 {[%emt 0:03:45]} Bh6 {[%emt 0:09:35]} 19. Rc2 {[%emt 0:03:11]} Bf4 {[%emt 0:00:09]} 20. g3 {[%emt 0:01:28]} Bd6 {[%emt 0:00:01]} 21. Nc5 {[%emt 0:00:36]} Bc8 {[%emt 0:06:06]} 22. Qf3 {[%emt 0:01:19]} Nd7 {[%emt 0:05:12]} 23. Bb2 {[%emt 0:03:13]} Bf8 {[%emt 0:03:49]} 24. Ne4 {[%emt 0:01:57]} Bg7 {[%emt 0:00:17]} 25. c5 {[%emt 0:02:44]} Nf8 {[%emt 0:01:40]} 26. Nd6 {[%emt 0:00:53]} Re7 {[%emt 0:01:00]} 27. Ba4 {[%emt 0:02:13]} Bd7 {[%emt 0:00:21]} 28. Bc3 {[%emt 0:00:51]} Rb8 {[%emt 0:00:17]} 29. Ree2 {[%emt 0:00:43]} f6 {[%emt 0:01:17]} 30. Rb2 {[%emt 0:00:17]} e5 {[%emt 0:00:34]} 31. Rxb8 {[%emt 0:00:41]} Qxb8 {[%emt 0:00:01]} 32. Rb2 {[%emt 0:00:02]} Qd8 {[%emt 0:00:39]} 33. Bxc6 {[%emt 0:00:56]} Bxc6 {[%emt 0:00:28]} 34. Qxc6 {[%emt 0:00:07]} exd4 {[%emt 0:00:51]} 35. Qd5+ {[%emt 0:00:50]} Ne6 {[%emt 0:00:31]} 36. Bxd4 {[%emt 0:00:29]} Kf8 {[%emt 0:00:31]} 37. Be3 {[%emt 0:01:13]} Nc7 {[%emt 0:00:34]} 38. Qc6 {[%emt 0:00:36]} h6 {[%emt 0:00:31]} 39. Rb7 {[%emt 0:00:30]} Ne6 {[%emt 0:00:32]} 40. Rxe7 {[%emt 0:00:00]} Qxe7 {[%emt 0:00:00]} 41. Qc8+ {[%emt 0:02:12]} Nd8 {[%emt 0:01:01]} 42. h3 {[%emt 0:01:55]} f5 {[%emt 0:00:39]} 43. Nb7 {[%emt 0:02:30]} Qxb7 {[%emt 0:16:53]} 44. Qxd8+ {[%emt 0:00:25]} Kf7 {[%emt 0:01:28]} 45. a4 {[%emt 0:01:48]} Bf6 {[%emt 0:05:55]} 46. Qd6 {[%emt 0:00:51]} Be7 {[%emt 0:01:03]} 47. Qe5 {[%emt 0:00:16]} Bf6 {[%emt 0:02:27]} 48. Qf4 {[%emt 0:00:12]} Bg5 {[%emt 0:01:25]} 49. Qc4+ {[%emt 0:00:16]} Ke7 {[%emt 0:00:20]} 50. Bxg5+ {[%emt 0:01:06]} hxg5 {[%emt 0:00:01]} 51. Qd4 {[%emt 0:00:15]} Qb1+ {[%emt 0:03:22]} 52. Kh2 {[%emt 0:00:13]} f4 {[%emt 0:00:37]} 53. gxf4 {[%emt 0:00:36]} gxf4 {[%emt 0:00:02]} 54. Qd6+ {[%emt 0:00:14]} Ke8 {[%emt 0:02:09]} 55. Qxf4 {[%emt 0:00:22]} Qc2 {[%emt 0:00:03]} 56. Qe3+ {[%emt 0:01:18]} Kf7 {[%emt 0:00:58]} 57. Qd4 {[%emt 0:00:20]} Ke6 {[%emt 0:00:17]} 58. Kg2 {[%emt 0:01:54]} Kf5 {[%emt 0:00:53]} 59. Qd5+ {[%emt 0:01:09]} Kf4 {[%emt 0:00:21]} 60. a5 {[%emt 0:00:40]} Qe2 {[%emt 0:00:34]} 61. c6 {[%emt 0:01:36]} Qe7 {[%emt 0:00:24]} 62. Qc4+ {[%emt 0:01:59]} Kg5 {[%emt 0:00:25]} 63. c7 {[%emt 0:00:43]} 1-0

[Event "European Amateur-ch U1700 2019"]
[Site "Rhodes"]
[Date "2019.04.10"]
[Round "5.3"]
[White "Apostolakis, Ioannis"]
[Black "Snokowski, Marcin"]
[Result "0-1"]
[ECO "B06"]
[WhiteElo "1439"]
[BlackElo "1659"]
[Annotator "NA"]
[PlyCount "92"]
[EventDate "2019.04.06"]
[EventType "swiss"]
[EventCountry "GRE"]
[SourceTitle "playchess.com"]
[Source "ChessBase"]
[SourceQuality "1"]
[TimeControl "40/5400+30:1800+30"]

1. e4 {[%emt 0:00:18]} g6 {[%emt 0:00:00]} 2. Nc3 {[%emt 0:00:47]} c6 {[%emt 0:00:50]} 3. f4 {[%emt 0:00:26]} d6 {[%emt 0:00:46]} 4. Nf3 {[%emt 0:00:10]} Bg7 {[%emt 0:01:16]} 5. d4 {[%emt 0:00:11]} e5 {[%emt 0:01:53]} 6. Be3 {[%emt 0:01:33]} Bg4 {[%emt 0:06:44]} 7. Be2 {[%emt 0:00:12]} Bxf3 {[%emt 0:00:28]} 8. Bxf3 {[%emt 0:00:08]} Nd7 {[%emt 0:00:17]} 9. O-O {[%emt 0:00:24]} Qb6 {[%emt 0:04:42]} 10. Na4 {[%emt 0:02:28]} Qa5 {[%emt 0:01:49]} 11. c3 {[%emt 0:00:44]} b5 {[%emt 0:00:23]} 12. f5 {[%emt 0:01:37]} Qxa4 {[%emt 0:05:07]} 13. b3 {[%emt 0:00:10]} Qa5 {[%emt 0:01:29]} 14. Bd2 {[%emt 0:02:37]} Qb6 {[%emt 0:01:04]} 15. Kh1 {[%emt 0:01:30]} exd4 {[%emt 0:02:49]} 16. Qe1 {[%emt 0:00:46]} d3 {[%emt 0:02:19]} 17. Be3 {[%emt 0:00:30]} Qc7 {[%emt 0:01:09]} 18. Bd4 {[%emt 0:00:25]} Ne5 {[%emt 0:00:30]} 19. Qh4 {[%emt 0:00:12]} Qe7 {[%emt 0:06:33]} 20. Qf2 {[%emt 0:00:12]} c5 {[%emt 0:01:05]} 21. Be3 {[%emt 0:00:32]} Nf6 {[%emt 0:05:51]} 22. Bg5 {[%emt 0:01:01]} h6 {[%emt 0:02:22]} 23. Bxf6 {[%emt 0:01:58]} Qxf6 {[%emt 0:01:06]} 24. g4 {[%emt 0:02:02]} g5 {[%emt 0:01:25]} 25. Rae1 {[%emt 0:01:34]} O-O {[%emt 0:07:50]} 26. Bd1 {[%emt 0:00:32]} c4 {[%emt 0:03:01]} 27. Re3 {[%emt 0:00:18]} Nd7 {[%emt 0:04:45]} 28. bxc4 {[%emt 0:00:44]} bxc4 {[%emt 0:00:10]} 29. Ba4 {[%emt 0:00:24]} Nb6 {[%emt 0:01:20]} 30. Bc6 {[%emt 0:03:38]} Rac8 {[%emt 0:00:35]} 31. e5 {[%emt 0:05:58]} dxe5 {[%emt 0:00:23]} 32. Be4 {[%emt 0:00:12]} Rfd8 {[%emt 0:01:08]} 33. Qd2 {[%emt 0:00:19]} Qd6 {[%emt 0:01:11]} 34. h4 {[%emt 0:01:24]} Bf6 {[%emt 0:00:37]} 35. Rh3 {[%emt 0:00:42]} Kg7 {[%emt 0:02:15]} 36. hxg5 {[%emt 0:03:28]} hxg5 {[%emt 0:00:18]} 37. Rh5 {[%emt 0:03:36]} Rh8 {[%emt 0:00:10]} 38. Qh2 {[%emt 0:01:19]} Rxh5 {[%emt 0:00:23]} 39. gxh5 {[%emt 0:00:21]} Kh6 {[%emt 0:00:38]} 40. Qd2 {[%emt 0:00:00]} Rb8 {[%emt 0:00:00]} 41. Rd1 {[%emt 0:05:53]} Na4 {[%emt 0:06:48]} 42. Qe1 {[%emt 0:03:28]} Nc5 {[%emt 0:00:27]} 43. Bg2 {[%emt 0:01:36]} Rd8 {[%emt 0:02:42]} 44. Rd2 {[%emt 0:01:05]} e4 {[%emt 0:00:21]} 45. Rd1 {[%emt 0:03:51]} Qf4 {[%emt 0:01:07]} 46. Qg1 {[%emt 0:00:10]} Qh4+ {[%emt 0:00:17]} 0-1

[Event "European Amateur-ch U1700 2019"]
[Site "Rhodes"]
[Date "2019.04.10"]
[Round "5.4"]
[White "Kostov, Kiril"]
[Black "Badrakova, Kseniya"]
[Result "1-0"]
[ECO "B22"]
[WhiteElo "1625"]
[BlackElo "1435"]
[Annotator "NA"]
[PlyCount "97"]
[EventDate "2019.04.06"]
[EventType "swiss"]
[EventCountry "GRE"]
[SourceTitle "playchess.com"]
[Source "ChessBase"]
[SourceQuality "1"]
[TimeControl "40/5400+30:1800+30"]

1. e4 {[%emt 0:00:20]} c5 {[%emt 0:00:00]} 2. c3 {[%emt 0:00:43]} d5 {[%emt 0:00:12]} 3. exd5 {[%emt 0:00:43]} Qxd5 {[%emt 0:00:06]} 4. d4 {[%emt 0:00:36]} Nc6 {[%emt 0:00:12]} 5. Nf3 {[%emt 0:00:33]} Bg4 {[%emt 0:00:17]} 6. Be2 {[%emt 0:01:25]} e6 {[%emt 0:00:29]} 7. Be3 {[%emt 0:00:17]} cxd4 {[%emt 0:00:45]} 8. cxd4 {[%emt 0:00:50]} Nf6 {[%emt 0:00:35]} 9. Nc3 {[%emt 0:01:22]} Qd8 {[%emt 0:00:47]} 10. O-O {[%emt 0:02:10]} Be7 {[%emt 0:00:51]} 11. a3 {[%emt 0:01:35]} O-O {[%emt 0:01:27]} 12. Qd2 {[%emt 0:04:44]} Nd5 {[%emt 0:04:37]} 13. Rfd1 {[%emt 0:01:29]} Rc8 {[%emt 0:06:20]} 14. Rac1 {[%emt 0:03:08]} Na5 {[%emt 0:13:02]} 15. Nxd5 {[%emt 0:16:53]} Qxd5 {[%emt 0:00:14]} 16. Rc3 {[%emt 0:01:38]} a6 {[%emt 0:08:30]} 17. b4 {[%emt 0:02:54]} Rxc3 {[%emt 0:01:51]} 18. Qxc3 {[%emt 0:00:12]} Nc6 {[%emt 0:00:13]} 19. h3 {[%emt 0:05:45]} Bh5 {[%emt 0:06:10]} 20. Rd2 {[%emt 0:08:13]} Rc8 {[%emt 0:11:52]} 21. Qc1 {[%emt 0:10:48]} b5 {[%emt 0:08:39]} 22. Rc2 {[%emt 0:00:38]} Bg6 {[%emt 0:04:36]} 23. Rc3 {[%emt 0:01:04]} f6 {[%emt 0:01:16]} 24. Nd2 {[%emt 0:02:20]} Qd7 {[%emt 0:06:25]} 25. Bf3 {[%emt 0:02:50]} Na7 {[%emt 0:00:49]} 26. d5 {[%emt 0:04:00]} Rxc3 {[%emt 0:06:25]} 27. Qxc3 {[%emt 0:00:08]} exd5 {[%emt 0:01:32]} 28. Qd4 {[%emt 0:03:36]} Nc8 {[%emt 0:02:05]} 29. Qxd5+ {[%emt 0:00:39]} Qxd5 {[%emt 0:00:11]} 30. Bxd5+ {[%emt 0:00:05]} Kf8 {[%emt 0:02:31]} 31. Bb7 {[%emt 0:00:03]} Nd6 {[%emt 0:00:22]} 32. Bxa6 {[%emt 0:00:07]} Bd3 {[%emt 0:01:41]} 33. Bc5 {[%emt 0:01:35]} Ke8 {[%emt 0:05:23]} 34. Nb3 {[%emt 0:01:53]} Kd7 {[%emt 0:01:38]} 35. Nd4 {[%emt 0:02:12]} Ne8 {[%emt 0:02:28]} 36. Bxe7 {[%emt 0:00:24]} Kxe7 {[%emt 0:00:03]} 37. Bxb5 {[%emt 0:00:10]} Bxb5 {[%emt 0:00:09]} 38. Nxb5 {[%emt 0:00:09]} Kd7 {[%emt 0:00:07]} 39. Kf1 {[%emt 0:01:04]} Kc6 {[%emt 0:00:08]} 40. Nc3 {[%emt 0:00:00]} Nd6 {[%emt 0:00:00]} 41. Ke2 {[%emt 0:01:02]} Nc4 {[%emt 0:00:37]} 42. a4 {[%emt 0:00:31]} Nb6 {[%emt 0:00:22]} 43. a5 {[%emt 0:01:38]} Nc4 {[%emt 0:00:20]} 44. Kd3 {[%emt 0:00:20]} Nd6 {[%emt 0:00:08]} 45. g4 {[%emt 0:01:02]} g6 {[%emt 0:00:18]} 46. Kd4 {[%emt 0:00:15]} h6 {[%emt 0:00:34]} 47. b5+ {[%emt 0:00:29]} Nxb5+ {[%emt 0:00:11]} 48. Nxb5 {[%emt 0:00:05]} Kxb5 {[%emt 0:00:04]} 49. Kd5 {[%emt 0:00:07]} 1-0

[Event "European Amateur-ch U1700 2019"]
[Site "Rhodes"]
[Date "2019.04.10"]
[Round "5.5"]
[White "Buzescu, Vladimir"]
[Black "De Luca, Andrew"]
[Result "0-1"]
[ECO "C34"]
[WhiteElo "1620"]
[BlackElo "1483"]
[Annotator "NA"]
[PlyCount "120"]
[EventDate "2019.04.06"]
[EventType "swiss"]
[EventCountry "GRE"]
[SourceTitle "playchess.com"]
[Source "ChessBase"]
[SourceQuality "1"]
[TimeControl "40/5400+30:1800+30"]

1. e4 {[%emt 0:00:00]} e5 {[%emt 0:00:00]} 2. f4 {[%emt 0:00:00]} exf4 {[%emt 0:00:19]} 3. Nf3 {[%emt 0:00:00]} Nc6 {[%emt 0:02:30]} 4. d4 {[%emt 0:00:39]} g5 {[%emt 0:01:23]} 5. d5 {[%emt 0:03:49]} Nb4 {[%emt 0:00:54]} 6. a3 {[%emt 0:02:00]} Na6 {[%emt 0:00:22]} 7. Qd4 {[%emt 0:07:58]} Qf6 {[%emt 0:07:46]} 8. e5 {[%emt 0:01:33]} Qg7 {[%emt 0:01:40]} 9. Bxa6 {[%emt 0:01:48]} bxa6 {[%emt 0:00:25]} 10. h3 {[%emt 0:04:03]} h5 {[%emt 0:03:36]} 11. Nc3 {[%emt 0:02:11]} g4 {[%emt 0:02:56]} 12. hxg4 {[%emt 0:01:06]} hxg4 {[%emt 0:00:25]} 13. Rxh8 {[%emt 0:00:21]} Qxh8 {[%emt 0:00:16]} 14. Ng1 {[%emt 0:01:50]} Qh4+ {[%emt 0:02:00]} 15. Qf2 {[%emt 0:00:30]} Qxf2+ {[%emt 0:01:08]} 16. Kxf2 {[%emt 0:00:11]} Bc5+ {[%emt 0:01:12]} 17. Kf1 {[%emt 0:00:21]} a5 {[%emt 0:00:58]} 18. Bxf4 {[%emt 0:01:32]} Ba6+ {[%emt 0:00:23]} 19. Nge2 {[%emt 0:00:51]} Bd4 {[%emt 0:07:18]} 20. Ke1 {[%emt 0:00:53]} Bxe2 {[%emt 0:00:50]} 21. Kxe2 {[%emt 0:00:12]} Ne7 {[%emt 0:02:32]} 22. Nb5 {[%emt 0:04:20]} Bb6 {[%emt 0:05:26]} 23. c4 {[%emt 0:02:56]} a6 {[%emt 0:01:09]} 24. Nc3 {[%emt 0:02:22]} O-O-O {[%emt 0:01:03]} 25. Rh1 {[%emt 0:07:03]} Ng6 {[%emt 0:01:01]} 26. Bg3 {[%emt 0:01:41]} Re8 {[%emt 0:01:04]} 27. Kd3 {[%emt 0:01:43]} Nxe5+ {[%emt 0:00:42]} 28. Bxe5 {[%emt 0:00:41]} Rxe5 {[%emt 0:00:09]} 29. Rh8+ {[%emt 0:06:55]} Kb7 {[%emt 0:00:15]} 30. Rf8 {[%emt 0:01:14]} Re3+ {[%emt 0:01:03]} 31. Kd2 {[%emt 0:01:00]} Rg3 {[%emt 0:00:19]} 32. Rxf7 {[%emt 0:01:08]} Rxg2+ {[%emt 0:00:13]} 33. Ne2 {[%emt 0:00:37]} d6 {[%emt 0:01:28]} 34. b4 {[%emt 0:00:55]} axb4 {[%emt 0:00:47]} 35. axb4 {[%emt 0:00:09]} Bd4 {[%emt 0:00:56]} 36. Kd3 {[%emt 0:00:41]} Be5 {[%emt 0:01:10]} 37. Rf5 {[%emt 0:03:23]} Rh2 {[%emt 0:01:43]} 38. Rg5 {[%emt 0:01:29]} Rh3+ {[%emt 0:01:02]} 39. Ke4 {[%emt 0:06:54]} Rb3 {[%emt 0:03:40]} 40. Rxg4 {[%emt 0:00:00]} Rxb4 {[%emt 0:00:00]} 41. Kd3 {[%emt 0:03:09]} a5 {[%emt 0:01:45]} 42. Rg1 {[%emt 0:02:22]} Kb6 {[%emt 0:00:32]} 43. Nd4 {[%emt 0:03:10]} a4 {[%emt 0:01:49]} 44. Nb5 {[%emt 0:07:43]} Rb3+ {[%emt 0:04:13]} 45. Kc2 {[%emt 0:01:42]} Kc5 {[%emt 0:01:19]} 46. Rg4 {[%emt 0:07:50]} Rb4 {[%emt 0:07:12]} 47. Kd3 {[%emt 0:02:23]} c6 {[%emt 0:00:41]} 48. dxc6 {[%emt 0:01:54]} Kxc6 {[%emt 0:00:22]} 49. Rg8 {[%emt 0:19:03]} Rb3+ {[%emt 0:01:43]} 50. Kc2 {[%emt 0:00:34]} Kc5 {[%emt 0:01:52]} 51. Rc8+ {[%emt 0:03:49]} Kb4 {[%emt 0:00:44]} 52. Rc6 {[%emt 0:03:11]} a3 {[%emt 0:08:08]} 53. Nxd6 {[%emt 0:04:08]} Rb2+ {[%emt 0:00:40]} 54. Kd3 {[%emt 0:02:18]} a2 {[%emt 0:02:25]} 55. Ra6 {[%emt 0:03:34]} Bxd6 {[%emt 0:00:47]} 56. Rb6+ {[%emt 0:01:40]} Kc5 {[%emt 0:00:13]} 57. Rxb2 {[%emt 0:01:14]} a1=Q {[%emt 0:00:20]} 58. Rb5+ {[%emt 0:00:12]} Kc6 {[%emt 0:00:20]} 59. Kc2 {[%emt 0:01:00]} Qd4 {[%emt 0:01:50]} 60. Rb3 {[%emt 0:00:48]} Be5 {[%emt 0:00:26]} 0-1